bitfinex-derivatives/quotes_SOLF0:USTF0_20230701
["timestamp","ask_amount","ask_price","bid_price","bid_amount"]
[1688218990640,83.99,18.461,18.448,83.99]
[1688218991341,0.77039522,18.456,18.453,0.84390278]
[1688218998557,84.39039522,18.456,18.453,0.84390278]
[1688218998846,200.0,18.458,18.441,83.99]
[1688218998847,83.64,18.454,18.441,83.99]
[1688218999051,83.62,18.45,18.439,58.4624]
[1688218999749,0.8550232,18.446,18.443,0.84023788]
[1688219000751,83.64,18.444,18.431,83.46]
[1688219001747,0.79461056,18.439,18.436,0.47466726]
[1688219001944,0.79461056,18.439,18.428,83.97]
[1688219002144,83.64,18.44,18.428,83.97]
[1688219002951,0.80136055,18.436,18.428,83.97]
[1688219005151,0.80136055,18.436,18.424,83.99]
[1688219005355,0.82504196,18.432,18.424,142.061]
[1688219005749,0.82504196,18.432,18.427,83.99]
[1688219007149,0.82504196,18.432,18.423,83.99]
[1688219007351,0.86568686,18.429,18.422,200.0]
[1688219007556,0.77021088,18.427,18.422,200.0]
[1688219012159,0.77021088,18.427,18.421,58.071]
[1688219013058,362.99952436,18.44,18.412,200.0]
[1688219013059,0.77766797,18.423,18.412,200.0]
[1688219013252,0.83176043,18.419,18.416,55.5599]
[1688219013447,0.87337077,18.419,18.416,55.5599]
[1688219014162,0.87337077,18.419,18.415,83.62]
[1688219017453,83.99,18.43,18.418,83.99]
[1688219018460,0.73443566,18.426,18.422,0.83070939]
[1688219025371,75.6,18.436,18.425,75.45]
[1688219026573,0.82544259,18.432,18.429,0.87657489]
[1688219031871,0.82544259,18.432,18.429,75.81657489]
[1688219032472,56.2646,18.444,18.432,200.0]
[1688219032773,56.2646,18.444,18.435,75.6]
[1688219033468,0.84358768,18.441,18.438,0.79535286]
[1688219046288,75.6,18.45,18.439,75.45]
[1688219047480,0.74546413,18.446,18.443,0.78747277]
[1688219048776,0.74546413,18.446,18.444,75.29]
[1688219048981,75.08,18.458,18.445,75.6]
[1688219049980,0.77516176,18.453,18.45,0.87740382]
[1688219050177,0.77516176,18.453,18.45,0.8728309]
[1688219050178,0.82703396,18.453,18.45,0.8728309]
[1688219050383,0.82703396,18.453,18.442,200.0]
[1688219050586,0.82703396,18.453,18.433,302.4]
[1688219050587,75.08,18.452,18.44,75.29]
[1688219050987,82.46,18.453,18.442,200.0]
[1688219051490,0.78975669,18.449,18.446,0.76878511]
[1688219053078,82.65,18.447,18.434,56.0008]
[1688219053283,82.77,18.445,18.434,56.0008]
[1688219054189,0.82805687,18.441,18.438,0.88783323]
[1688219060492,0.82805687,18.441,18.43,82.98]
[1688219061296,82.77,18.439,18.426,82.74]
[1688219061496,0.8158545,18.434,18.431,0.87961378]
[1688219062485,0.8158545,18.434,18.423,57.7915]
[1688219063197,0.8158545,18.434,18.423,85.37674947]
[1688219063600,0.8158545,18.434,18.427,0.61456221]
[1688219075806,0.8158545,18.434,18.423,57.7915]
[1688219076509,82.45,18.432,18.422,200.0]
[1688219076699,0.88866907,18.429,18.422,200.0]
[1688219080411,82.77,18.43,18.412,200.0]
[1688219080601,0.76077754,18.423,18.415,82.98]
[1688219080807,0.76077754,18.423,18.416,9.96728906]
[1688219090619,0.76077754,18.423,18.415,82.98]
[1688219090816,0.76077754,18.423,18.412,254.6527]
[1688219090817,83.53077754,18.423,18.412,254.6527]
[1688219091820,82.98,18.421,18.412,254.6527]
[1688219092026,0.8004204,18.418,18.412,254.6527]
[1688219094628,0.8004204,18.418,18.4,1522.09021971]
[1688219094629,0.8004204,18.418,18.407,82.83]
[1688219094827,0.88360261,18.414,18.404,57.2988]
[1688219095027,0.88360261,18.414,18.405,9.97370639]
[1688219095729,0.88360261,18.414,18.404,57.2988]
[1688219096322,0.88360261,18.414,18.405,9.97454775]
[1688219097219,0.88360261,18.414,18.404,57.2988]
[1688219101023,0.88360261,18.414,18.406,82.83]
[1688219101928,0.88360261,18.414,18.404,57.2988]
[1688219103031,0.88360261,18.414,18.406,82.98]
[1688219110836,0.88360261,18.414,18.407,75.21]
[1688219111942,0.88360261,18.414,18.405,75.72]
[1688219119548,75.72,18.41,18.398,75.72]
[1688219119738,0.7840313,18.406,18.398,75.72]
[1688219121249,0.7840313,18.406,18.396,58.9662]
[1688219121440,0.7840313,18.406,18.397,9.97710295]
[1688219123046,74.2978313,18.407,18.401,200.0]
[1688219123256,302.88,18.419,18.401,200.0]
[1688219123447,74.98,18.416,18.405,75.72]
[1688219124155,0.75887866,18.412,18.409,0.78668399]
[1688219143158,0.75887866,18.412,18.394,75.09021971]
[1688219143159,75.72,18.41,18.397,75.72]
[1688219143351,75.72,18.41,18.398,9.97723742]
[1688219144162,0.8751856,18.406,18.398,9.97723742]
[1688219144661,227.05,18.404,18.399,9.97723742]
[1688219144864,75.32,18.399,18.383,75.37]
[1688219145157,0.87023844,18.403,18.384,9.98490813]
[1688219145158,0.87957527,18.393,18.384,9.98490813]
[1688219145361,0.87957527,18.393,18.384,64.67300813]
[1688219145557,0.87957527,18.393,18.385,9.98490813]
[1688219145763,0.87957527,18.393,18.384,54.6881]
[1688219145957,0.87957527,18.393,18.383,102.92797068]
[1688219146157,0.87957527,18.393,18.385,75.37]
[1688219146464,0.87957527,18.393,18.383,75.72]
[1688219146664,0.87957527,18.393,18.384,57.3337]
[1688219152269,0.87957527,18.393,18.386,75.21]
[1688219152970,76.59957527,18.393,18.384,57.3337]
[1688219158273,0.87957527,18.393,18.385,75.72]
[1688219163071,0.87957527,18.393,18.384,57.3337]
[1688219163072,76.59957527,18.393,18.384,57.3337]
[1688219163272,75.72,18.39,18.384,57.3337]
[1688219163471,75.72,18.39,18.38,103.34358754]
[1688219163472,0.85500091,18.389,18.38,103.34358754]
[1688219163668,0.85500091,18.389,18.38,75.72]
[1688219164771,75.72,18.387,18.377,75.72]
[1688219164971,0.88040256,18.384,18.377,75.72]
[1688219165987,0.88040256,18.384,18.379,75.72]
[1688219171071,74.98,18.393,18.382,75.72]
[1688219172078,0.80843857,18.389,18.386,0.76719485]
[1688219187010,76.12843857,18.389,18.386,0.76719485]
[1688219187608,76.12843857,18.389,18.378,75.21]
[1688219188207,74.98,18.385,18.374,75.72]
[1688219188705,57.9631,18.395,18.378,0.11778842]
[1688219188706,302.88,18.38,18.378,0.11778842]
[1688219188908,75.72,18.379,18.377,0.11786243]
[1688219189100,75.72,18.379,18.365,135.4582]
[1688219189101,75.72,18.379,18.376,0.11801046]
[1688219189408,75.72,18.376,18.365,135.4582]
[1688219189608,0.81702859,18.372,18.365,135.4582]
[1688219189814,0.81702859,18.372,18.369,0.1191212]
[1688219203421,76.53702859,18.372,18.369,0.1191212]
[1688219203818,74.98,18.37,18.369,0.1191212]
[1688219210327,74.98,18.37,18.357,9.99981721]
[1688219210528,75.72,18.366,18.357,9.99981721]
[1688219211027,75.72,18.366,18.355,75.72]
[1688219211222,75.72,18.366,18.356,9.99971376]
[1688219211427,0.73679588,18.363,18.356,9.99971376]
[1688219211620,0.73679588,18.363,18.355,75.72]
[1688219213930,0.73679588,18.363,18.357,75.72]
[1688219221041,0.73679588,18.363,18.352,84.63966918]
[1688219221042,0.73679588,18.363,18.359,68.11]
[1688219221233,68.5,18.371,18.362,67.96]
[1688219221434,68.5,18.371,18.365,68.11]
[1688219221836,68.5,18.373,18.367,67.96]
[1688219222228,59.5456,18.387,18.368,0.73686996]
[1688219222229,69.26683771,18.372,18.368,0.73686996]
[1688219222434,69.30387801,18.372,18.368,0.73686996]
[1688219224843,68.5,18.375,18.368,68.84686996]
[1688219225043,68.5,18.375,18.368,68.11]
[1688219225839,0.73906095,18.373,18.37,0.79776191]
[1688219226041,0.85651974,18.373,18.37,0.8664759]
[1688219230651,76.04,18.38,18.37,0.8664759]
[1688219230850,76.04,18.38,18.369,76.04]
[1688219231537,304.16,18.388,18.372,76.04]
[1688219231538,0.79877008,18.376,18.372,76.04]
[1688219231851,0.82832258,18.376,18.372,76.79240899]
[1688219232551,75.61,18.383,18.372,76.79240899]
[1688219232947,76.04,18.386,18.375,76.04]
[1688219233347,76.04,18.384,18.373,76.04]
[1688219233551,0.76026157,18.38,18.377,0.82560507]
[1688219234755,0.76026157,18.38,18.379,43.6699]
[1688219234948,0.76026157,18.38,18.379,87.3398]
[1688219238649,76.04,18.384,18.379,87.3398]
[1688219239654,0.81251903,18.383,18.379,87.3398]
[1688219241349,0.81251903,18.383,18.382,87.3398]
[1688219241548,0.81251903,18.383,18.382,131.0097]
[1688219243755,75.61,18.388,18.382,131.0097]
[1688219244648,0.64306655,18.387,18.383,0.87724788]
[1688219248063,0.64306655,18.387,18.386,43.6699]
[1688219248764,75.78,18.391,18.386,43.6699]
[1688219249259,76.04,18.389,18.386,43.6699]
[1688219249763,76.04,18.389,18.386,44.458296]
[1688219251463,75.61,18.392,18.386,44.458296]
[1688219254357,75.61,18.392,18.391,43.6699]
[1688219254666,75.61,18.392,18.391,87.3398]
[1688219262067,164.37252741,18.392,18.382,87.3398]
[1688219262258,200.0,18.397,18.382,87.3398]
[1688219262259,75.78,18.383,18.382,87.3398]
[1688219265167,0.78876587,18.384,18.382,87.3398]
[1688219285480,76.04,18.385,18.382,87.3398]
[1688219285682,75.61,18.39,18.382,87.3398]
[1688219285877,67.71,18.39,18.384,68.34]
[1688219286583,67.71,18.39,18.385,0.89641953]
[1688219290186,54.0304,18.395,18.385,0.10765365]
[1688219290187,67.71,18.386,18.385,0.10765365]
[1688219290979,75.96,18.388,18.385,0.10765365]
[1688219291179,76.74817415,18.388,18.385,0.10765365]
[1688219297886,88.81048074,18.387,18.385,0.10765365]
[1688219298285,76.74817415,18.388,18.385,0.10765365]
[1688219298490,88.81056132,18.387,18.385,0.10765365]
[1688219312000,75.71,18.386,18.385,0.10765365]
[1688219312195,164.52056132,18.386,18.385,0.10765365]
[1688219316210,88.81056132,18.386,18.385,0.10765365]
[1688219316590,88.81056132,18.387,18.385,0.10765365]
[1688219316795,88.81056132,18.386,18.385,0.10765365]
[1688219317198,88.81056132,18.387,18.385,0.10765365]
[1688219317499,88.81056132,18.386,18.385,0.10765365]
[1688219317899,88.81056132,18.387,18.385,0.10765365]
[1688219318203,88.81056132,18.386,18.385,0.10765365]
[1688219318399,88.81056132,18.387,18.385,0.10765365]
[1688219337911,75.96,18.386,18.385,0.10765365]
[1688219338208,164.77056132,18.386,18.385,0.10765365]
[1688219342907,468.61056132,18.386,18.363,75.28]
[1688219343108,75.71,18.374,18.365,56.9023]
[1688219343814,0.78092973,18.371,18.365,56.9023]
[1688219344015,0.78092973,18.371,18.368,0.78626241]
[1688219348110,76.74092973,18.371,18.368,0.78626241]
[1688219348311,75.74,18.369,18.368,0.78626241]
[1688219355024,0.78092973,18.371,18.368,0.78626241]
[1688219355818,68.95092973,18.371,18.368,0.78626241]
[1688219356722,68.17,18.369,18.368,0.78626241]
[1688219359537,68.46,18.37,18.368,0.78626241]
[1688219360231,0.78092973,18.371,18.368,0.78626241]
[1688219361829,0.78092973,18.371,18.368,69.24626241]
[1688219368333,68.17,18.38,18.37,67.85]
[1688219368527,68.17,18.38,18.373,68.46]
[1688219368737,68.46,18.382,18.376,68.46]
[1688219369336,0.11600778,18.381,18.377,0.80565644]
[1688219372534,135.4669,18.389,18.378,75.98]
[1688219373637,135.4669,18.389,18.382,0.86029311]
[1688219374241,75.98,18.386,18.382,0.86029311]
[1688219378543,75.98,18.393,18.382,76.30029311]
[1688219378841,88.73009811,18.392,18.382,76.30029311]
[1688219379739,75.57,18.396,18.385,75.98]
[1688219379943,88.76463584,18.395,18.389,0.80346505]
[1688219380641,75.98,18.398,18.389,0.80346505]
[1688219380833,88.76459247,18.397,18.389,0.80346505]
[1688219386756,75.57,18.405,18.394,75.98]
[1688219387053,97.14980898,18.404,18.398,0.8572603]
[1688219387350,97.14980898,18.403,18.398,0.8572603]
[1688219387539,88.75808073,18.402,18.398,0.8572603]
[1688219387751,88.75808073,18.401,18.398,0.8572603]
[1688219387944,75.57,18.405,18.398,0.8572603]
[1688219387945,88.75808073,18.4,18.398,0.8572603]
[1688219388146,88.75808073,18.399,18.398,0.8572603]
[1688219388544,164.73808073,18.399,18.388,57.9694]
[1688219388746,88.75808073,18.398,18.388,57.9694]
[1688219389452,88.75808073,18.398,18.391,0.84129446]
[1688219389659,0.84017449,18.395,18.391,0.84129446]
[1688219391454,304.08,18.402,18.391,0.84129446]
[1688219391455,75.98,18.402,18.391,76.82129446]
[1688219391657,88.76931927,18.401,18.391,76.82129446]
[1688219400059,75.98,18.399,18.391,0.84129446]
[1688219401047,57.5409,18.401,18.391,0.84129446]
[1688219401048,75.57,18.397,18.391,0.84129446]
[1688219405157,75.98,18.394,18.391,0.84129446]
[1688219407870,0.76177266,18.39,18.376,75.98]
[1688219408171,75.98,18.387,18.376,75.98]
[1688219408771,0.85801026,18.383,18.38,0.78375584]
[1688219410463,75.57,18.382,18.38,0.78375584]
[1688219410859,0.85801026,18.383,18.38,0.78375584]
[1688219417564,75.98,18.392,18.381,75.98]
[1688219418573,75.98,18.392,18.385,0.88359329]
[1688219420173,75.98,18.395,18.385,0.88359329]
[1688219420372,75.98,18.397,18.388,0.79818912]
[1688219420572,75.98,18.397,18.391,0.75997494]
[1688219421976,75.98,18.399,18.391,0.75997494]
[1688219423477,88.84241861,18.398,18.391,0.75997494]
[1688219424578,75.98,18.399,18.391,0.75997494]
[1688219425373,76.35,18.403,18.392,75.98]
[1688219425583,88.84221676,18.4,18.392,75.98]
[1688219428080,164.82221676,18.4,18.391,0.75997494]
[1688219428281,88.84221676,18.399,18.391,0.75997494]
[1688219431878,75.98,18.398,18.391,0.75997494]
[1688219432079,88.84221676,18.397,18.391,0.75997494]
[1688219432575,75.98,18.398,18.391,0.75997494]
[1688219432781,88.84092917,18.397,18.391,0.75997494]
[1688219433180,75.98,18.395,18.391,0.75997494]
[1688219434783,88.84212114,18.394,18.391,0.75997494]
[1688219445697,88.84212114,18.394,18.385,75.6]
[1688219445898,75.98,18.39,18.381,55.6234]
[1688219446203,88.84212114,18.389,18.379,75.6]
[1688219446896,0.75960504,18.386,18.382,0.75190627]
[1688219481514,68.35,18.384,18.382,0.75190627]
[1688219481819,68.35,18.383,18.382,0.75190627]
[1688219482218,68.35,18.383,18.382,0.61531371]
[1688219483716,68.35,18.383,18.373,54.4517]
[1688219483925,68.35,18.377,18.373,54.4517]
[1688219484823,69.21288274,18.377,18.373,55.22216739]
[1688219485325,0.86288274,18.377,18.373,69.12046739]
[1688219485918,0.86288274,18.377,18.373,0.77046739]
[1688219486523,0.86288274,18.377,18.374,75.33]
[1688219490833,0.86288274,18.377,18.373,0.77046739]
[1688219513742,0.86288274,18.377,18.373,76.76046739]
[1688219515855,0.86288274,18.377,18.373,0.77046739]
[1688219517760,75.99,18.383,18.373,76.76046739]
[1688219517954,75.99,18.383,18.373,75.99]
[1688219518653,0.64951651,18.38,18.376,0.75496348]
[1688219524955,75.72,18.386,18.376,76.08496348]
[1688219525162,75.72,18.386,18.376,75.33]
[1688219525458,132.7971,18.389,18.379,75.99]
[1688219525667,75.99,18.392,18.381,75.99]
[1688219525868,88.60839327,18.391,18.381,75.99]
[1688219526061,88.60839327,18.391,18.385,0.8265736]
[1688219526669,76.75,18.396,18.385,0.8265736]
[1688219526864,88.60702897,18.395,18.385,0.8265736]
[1688219534274,76.75,18.396,18.385,0.8265736]
[1688219541974,76.75,18.396,18.385,76.8165736]
[1688219545893,67.96,18.394,18.388,68.01]
[1688219546092,67.96,18.394,18.389,0.81375709]
[1688219553902,67.87,18.402,18.393,67.67]
[1688219554193,67.87,18.402,18.396,0.73691243]
[1688219561998,67.96,18.4,18.396,0.73691243]
[1688219563714,67.87,18.397,18.385,67.67]
[1688219563900,67.87,18.397,18.373,586.0]
[1688219563901,67.96,18.389,18.383,67.67]
[1688219564600,0.73572864,18.388,18.384,0.73541981]
[1688219568704,67.87,18.392,18.386,68.01]
[1688219569902,67.87,18.392,18.387,0.73690285]
[1688219571805,67.87,18.394,18.388,68.01]
[1688219576111,26.71457672,18.404,18.393,68.01]
[1688219576112,67.87,18.399,18.393,68.01]
[1688219576317,67.87,18.399,18.394,0.78870502]
[1688219580813,67.96,18.402,18.395,67.67]
[1688219581013,67.96,18.402,18.397,0.75656635]
[1688219588525,67.87,18.405,18.398,68.01]
[1688219591633,67.87,18.408,18.401,68.01]
[1688219591832,88.35668214,18.407,18.403,0.76505494]
[1688219593226,67.96,18.404,18.396,67.67]
[1688219593426,67.96,18.402,18.396,67.67]
[1688219593823,67.96,18.402,18.396,94.49033867]
[1688219594224,0.743039,18.401,18.397,0.79448535]
[1688219596034,67.96,18.402,18.397,0.79448535]
[1688219597926,67.87,18.399,18.397,0.79448535]
[1688219598125,156.17966051,18.398,18.387,67.67]
[1688219598326,67.87,18.391,18.385,67.67]
[1688219599126,0.76919226,18.39,18.386,0.82477309]
[1688219599829,0.76919226,18.39,18.388,68.01]
[1688219600235,67.96,18.394,18.388,68.01]
[1688219601034,131.574,18.397,18.386,76.40477309]
[1688219601434,0.1231465,18.393,18.386,76.40477309]
[1688219602826,0.1231465,18.393,18.387,75.53]
[1688219606537,0.1231465,18.393,18.39,75.2]
[1688219608235,88.44969106,18.4,18.39,75.2]
[1688219608644,58.1563,18.402,18.393,75.58]
[1688219609334,58.1563,18.402,18.396,0.83231649]
[1688219614745,75.87,18.401,18.396,0.83231649]
[1688219618044,58.1563,18.402,18.396,0.83231649]
[1688219624041,75.87,18.401,18.396,0.83231649]
[1688219627146,75.15,18.399,18.396,0.83231649]
[1688219631948,75.15,18.401,18.396,0.83231649]
[1688219638864,58.1563,18.402,18.396,0.83231649]
[1688219648666,75.15,18.403,18.396,0.83231649]
[1688219648861,88.43073313,18.402,18.396,0.83231649]
[1688219649062,75.15,18.403,18.396,0.83231649]
[1688219651172,88.42814183,18.402,18.396,0.83231649]
[1688219652374,75.15,18.403,18.396,0.83231649]
[1688219652871,88.42817653,18.402,18.396,0.83231649]
[1688219653071,75.14,18.406,18.397,0.79093214]
[1688219653272,88.42256321,18.405,18.397,0.79093214]
[1688219655464,75.87,18.412,18.401,75.58]
[1688219655664,88.42975053,18.411,18.405,0.7604072]
[1688219658476,75.87,18.412,18.405,0.7604072]
[1688219665881,68.04,18.409,18.405,0.7604072]
[1688219666081,68.04,18.409,18.405,0.85604551]
[1688219669085,56.5559,18.418,18.405,0.85604551]
[1688219669086,68.18,18.407,18.405,0.85604551]
[1688219669277,68.18,18.406,18.397,68.18]
[1688219669483,68.18,18.404,18.397,68.18]
[1688219670386,0.78432291,18.402,18.399,0.74920049]
[1688219679480,0.78432291,18.402,18.4,68.18]
[1688219686196,56.5559,18.418,18.399,0.74920049]
[1688219686197,68.04,18.41,18.401,67.82]
[1688219686393,68.04,18.41,18.403,67.82]
[1688219687184,56.5559,18.418,18.401,68.18]
[1688219687185,68.04,18.408,18.401,68.18]
[1688219688296,0.85696895,18.406,18.403,0.775622]
[1688219692094,68.04,18.405,18.403,0.775622]
[1688219698110,68.04,18.404,18.403,0.775622]
[1688219698404,68.04,18.404,18.396,68.18]
[1688219698606,68.18,18.403,18.396,68.18]
[1688219699208,0.75911013,18.401,18.398,0.79892306]
[1688219703205,0.75911013,18.401,18.399,68.18]
[1688219709417,0.75911013,18.401,18.398,0.79892306]
[1688219711815,0.75911013,18.401,18.4,68.18]
[1688219712117,68.18,18.407,18.4,68.18]
[1688219713016,0.88986802,18.405,18.4,68.18]
[1688219713612,68.04,18.411,18.404,67.82]
[1688219714613,68.04,18.411,18.406,0.73648693]
[1688219719418,68.18,18.414,18.408,68.18]
[1688219719613,68.18,18.417,18.41,68.18]
[1688219719810,68.18,18.417,18.412,0.83513601]
[1688219721823,68.04,18.416,18.412,0.83513601]
[1688219722122,68.04,18.416,18.412,0.7510734]
[1688219722611,68.18,18.414,18.412,0.7510734]
[1688219722814,68.18,18.414,18.411,0.83910021]
[1688219725215,68.18,18.412,18.411,0.83910021]
[1688219725410,68.18,18.412,18.41,0.84828997]
[1688219725611,68.18,18.411,18.409,0.86018512]
[1688219725825,68.18,18.411,18.408,0.88172931]
[1688219727217,68.18,18.409,18.408,0.88172931]
[1688219727525,68.18,18.409,18.398,67.82]
[1688219727721,68.18,18.405,18.398,67.82]
[1688219728722,0.84792137,18.403,18.4,0.73754426]
[1688219746133,75.23,18.412,18.401,75.69]
[1688219747025,75.23,18.412,18.405,0.84778498]
[1688219747924,75.79,18.414,18.405,0.84778498]
[1688219748227,75.79,18.414,18.408,0.86569506]
[1688219761037,58.6387,18.418,18.408,0.86569506]
[1688219761038,75.66,18.417,18.408,0.86569506]
[1688219762745,75.78,18.412,18.408,0.86569506]
[1688219764548,75.66,18.409,18.408,0.86569506]
[1688219764845,75.66,18.409,18.4,55.0975]
[1688219765435,75.66,18.409,18.4,201.08808401]
[1688219765638,0.850017,18.406,18.403,0.85006579]
[1688219774354,0.850017,18.406,18.398,75.57]
[1688219774765,76.640017,18.406,18.395,75.69]
[1688219774957,75.79,18.406,18.395,75.69]
[1688219775257,75.66,18.4,18.391,146.00370822]
[1688219775455,0.88212713,18.397,18.394,0.89435291]
[1688219775759,75.68,18.395,18.384,75.79]
[1688219776759,0.81531469,18.391,18.388,0.89376334]
[1688219779961,0.81531469,18.391,18.382,129.3055]
[1688219780261,0.81531469,18.391,18.382,75.05]
[1688219781061,0.81531469,18.391,18.385,0.83509535]
[1688219788863,0.81531469,18.391,18.386,75.57]
[1688219801167,75.66,18.398,18.389,200.0]
[1688219801372,200.0,18.414,18.389,200.0]
[1688219801574,75.23,18.401,18.39,75.57]
[1688219801965,75.79,18.403,18.392,75.79]
[1688219802379,0.78036129,18.399,18.396,0.84391644]
[1688219805783,200.0,18.414,18.397,75.79]
[1688219805784,75.78,18.408,18.397,75.79]
[1688219806668,75.78,18.408,18.401,0.8334239]
[1688219806873,0.86619379,18.404,18.401,0.8334239]
[1688219812590,200.0,18.414,18.401,0.8334239]
[1688219812591,75.79,18.414,18.403,75.69]
[1688219813887,75.79,18.414,18.407,0.77074092]
[1688219813888,0.8781712,18.41,18.407,0.77074092]
[1688219821391,75.68,18.416,18.407,0.77074092]
[1688219821598,75.23,18.418,18.407,76.56074092]
[1688219822387,0.22184831,18.414,18.407,76.56074092]
[1688219823598,0.22184831,18.414,18.408,200.0]
[1688219823794,75.79,18.42,18.409,75.79]
[1688219824785,75.79,18.42,18.413,0.74397759]
[1688219825794,75.68,18.423,18.413,75.79397759]
[1688219826091,75.68,18.423,18.416,0.80489231]
[1688219828089,75.79,18.429,18.418,75.79]
[1688219828291,75.79,18.429,18.422,0.82592686]
[1688219831089,75.78,18.431,18.422,0.82592686]
[1688219831297,75.23,18.433,18.425,0.8319868]
[1688219831490,75.23,18.433,18.427,0.85849132]
[1688219833500,75.66,18.435,18.427,0.85849132]
[1688219833699,75.66,18.435,18.429,0.78857347]
[1688219834000,75.66,18.435,18.43,0.75970976]
[1688219836797,75.23,18.433,18.43,0.75970976]
[1688219841506,75.79,18.434,18.43,0.75970976]
[1688219843404,57.246,18.441,18.43,0.75970976]
[1688219843405,75.68,18.437,18.43,0.75970976]
[1688219846303,75.79,18.443,18.43,0.75970976]
[1688219846611,75.79,18.443,18.435,0.80162174]
[1688219847506,56.8698,18.444,18.435,76.49162174]
[1688219847907,75.68,18.446,18.435,76.49162174]
[1688219848105,76.14,18.45,18.438,75.05]
[1688219848307,76.14,18.45,18.442,0.86308431]
[1688219849506,8.34229544,18.449,18.442,0.86308431]
[1688219851411,76.14,18.45,18.442,0.86308431]
[1688219851617,8.33742751,18.449,18.442,0.86308431]
[1688219852827,75.68,18.453,18.443,75.79]
[1688219853027,58.2963,18.456,18.446,0.74404312]
[1688219853326,8.34043243,18.455,18.446,0.74404312]
[1688219854835,75.79,18.454,18.446,0.74404312]
[1688219855130,75.23,18.451,18.446,0.74404312]
[1688219856137,75.23,18.448,18.434,75.05]
[1688219856435,303.16,18.45,18.434,75.05]
[1688219856637,8.33809444,18.449,18.434,75.05]
[1688219857034,0.73977282,18.443,18.44,0.80373614]
[1688219858538,75.79,18.442,18.432,75.79]
[1688219859636,0.8702144,18.439,18.435,0.80246106]
[1688219864139,0.8702144,18.439,18.425,75.05]
[1688219864140,75.78,18.436,18.425,75.05]
[1688219864945,75.78,18.438,18.427,75.57]
[1688219865138,0.89031142,18.434,18.431,0.85070534]
[1688219878652,59.2038,18.441,18.433,75.79]
[1688219879543,75.78,18.444,18.433,75.79]
[1688219879850,0.86202379,18.44,18.437,0.88082278]
[1688219887356,75.78,18.439,18.437,0.88082278]
[1688219887551,0.86202379,18.44,18.437,0.88082278]
[1688219901853,75.68,18.448,18.438,75.79]
[1688219902360,75.68,18.448,18.439,133.80600005]
[1688219902859,0.5933408,18.445,18.442,0.76676644]
[1688219903564,76.2533408,18.445,18.442,0.76676644]
[1688219906252,76.2533408,18.445,18.434,55.8047]
[1688219906463,76.2533408,18.445,18.435,133.80974625]
[1688219906660,75.66,18.445,18.436,133.80974625]
[1688219906857,75.66,18.445,18.437,133.80974625]
[1688219907051,75.66,18.445,18.438,133.80974625]
[1688219907255,75.66,18.445,18.433,76.5]
[1688219907256,0.8078455,18.443,18.44,0.89384495]
[1688219911969,76.5978455,18.443,18.44,0.89384495]
[1688219913966,76.5978455,18.443,18.441,133.81879517]
[1688219914267,0.8078455,18.443,18.441,133.81879517]
[1688219937685,67.9,18.442,18.441,133.81879517]
[1688219942294,67.9,18.442,18.441,45.36832244]
[1688219946189,67.9,18.442,18.44,0.89384495]
[1688219946389,67.9,18.441,18.44,0.89384495]
[1688219968515,67.71,18.444,18.44,130.25153906]
[1688219968710,67.71,18.444,18.441,129.35769411]
[1688219969815,68.26240873,18.444,18.441,129.35769411]
[1688219971214,67.9,18.442,18.441,129.35769411]
[1688219981916,67.71,18.443,18.441,129.35769411]
[1688219991837,68.45240873,18.444,18.441,129.35769411]
[1688219997447,0.55240873,18.444,18.441,129.35769411]
[1688220003447,68.45240873,18.444,18.441,129.35769411]
[1688220004641,67.9,18.443,18.441,129.35769411]
[1688220007447,67.9,18.442,18.441,129.35769411]